Workbook

Sheet Portada
B7: Licitación Pública No. LA-OAX-DID-004-2022
B8: Convocatoria para la Contratación de Instrumentos Derivados
B9: Hoja de Cálculo para la determinación de la Tabla de Amortización del Financiamiento Banobras 2
B11: Instrucciones de uso
B12: 1. Indicar la tasa SWAP
B13: 2. Oprimir el botón Calcular Amortización y esperar hasta que en el indicador se lea: Check
B15: Consideraciones
B16: El adecuado uso de la hoja de cálculo requiere habilitar el uso de Macros
B17: 1. En caso que, después de ingresar la tasa SWAP y oprimir el botón Calcular Amortización, el indicador no muestre Check, se deberá apretar nuevamente el botón.
B18: 2. En caso de existir diferenciales en centavos de la tabla de amortización con respecto al saldo insoluto, la diferencia se compensará en el último pago de capital
B19: En caso de dudas adicionales, favor de contactar al siguiente número: 5535577085

Sheet Perfil de Amortización
A1: Licitación Pública No. LA-OAX-DID-004-2022 para la Contratación de SWAP del Estado de Oaxaca
A2: Hoja de Cálculo para la determinación de la Tabla de Amortización del Financiamiento Banobras 2
B4: Indicador | D4: Monto para Inversión | E4: 147650228.4 | G4: Tasa SWAP | H4: 0.086419 | J4: 1948259171
B5: =+IF(ROUND(J188,1)=ABS(0),"Check","Oprime Boton ↓") -> Check | D5: Fondo de Reserva | E5: =+(J5/J4)*E4 -> 3921216.105 | G5: Sobretasa | H5: 0.0035 | J5: 51740829.11 | K5: FR
D6: Monto de la disposición | E6: =+SUM(E4:E5) -> 151571444.5 | G6: Tasa fija | H6: =+SUM(H4:H5) -> 0.089919 | J6: =+SUM(J4:J5) -> 2000000000
D9: Periodo | E9: Fecha | F9: Saldo inicial | G9: Amortización | H9: Intereses | I9: Servicio de la deuda | J9: Saldo final
B10: =+PMT(H6*30/360,D188,E6) -> -1650939.918
B11: 13395.33911
A13: =+IF(B5="Check",TRUE,FALSE) -> TRUE
E32: 2022-06-01 | F32: =+E6 -> 151571444.5 | J32: =+F32-G32 -> 151571444.5
D33: 1 | E33: 2022-07-05 | F33: =+J32 -> 151571444.5 | G33: =+I33-H33 -> 377137.4991 | H33: =+ROUND(F33*$H$6*(E33-E32)/360,2) -> 1287197.76 | I33: =+ROUND(-$B$10,2)+B11 -> 1664335.259 | J33: 151194307
D34: 2 | E34: 2022-08-05 | F34: 151194307 | G34: 493633.9591 | H34: 1170701.3 | I34: =+I33 -> 1664335.259 | J34: 150700673.1
D35: 3 | E35: 2022-09-05 | F35: 150700673.1 | G35: 497456.1791 | H35: 1166879.08 | I35: 1664335.259 | J35: 150203216.9
D36: 4 | E36: 2022-10-05 | F36: 150203216.9 | G36: 538824.9991 | H36: 1125510.26 | I36: 1664335.259 | J36: 149664391.9
D37: 5 | E37: 2022-11-07 | F37: 149664391.9 | G37: 430715.2791 | H37: 1233619.98 | I37: 1664335.259 | J37: 149233676.6
D38: 6 | E38: 2022-12-05 | F38: 149233676.6 | G38: 620639.6991 | H38: 1043695.56 | I38: 1664335.259 | J38: 148613036.9
D39: 7 | E39: 2023-01-05 | F39: 148613036.9 | G39: 513620.7991 | H39: 1150714.46 | I39: 1664335.259 | J39: 148099416.1
D40: 8 | E40: 2023-02-07 | F40: 148099416.1 | G40: 443614.7191 | H40: 1220720.54 | I40: 1664335.259 | J40: 147655801.4
D41: 9 | E41: 2023-03-06 | F41: 147655801.4 | G41: 668555.6091 | H41: 995779.65 | I41: 1664335.259 | J41: 146987245.8
D42: 10 | E42: 2023-04-05 | F42: 146987245.8 | G42: 562923.0791 | H42: 1101412.18 | I42: 1664335.259 | J42: 146424322.7
D43: 11 | E43: 2023-05-05 | F43: 146424322.7 | G43: 567141.1991 | H43: 1097194.06 | I43: 1664335.259 | J43: 145857181.5
D44: 12 | E44: 2023-06-05 | F44: 145857181.5 | G44: 534959.4591 | H44: 1129375.8 | I44: 1664335.259 | J44: 145322222.1
D45: 13 | E45: 2023-07-05 | F45: 145322222.1 | G45: 575399.5191 | H45: 1088935.74 | I45: 1664335.259 | J45: 144746822.5
D46: 14 | E46: 2023-08-07 | F46: 144746822.5 | G46: 471248.7191 | H46: 1193086.54 | I46: 1664335.259 | J46: 144275573.8
D47: 15 | E47: 2023-09-05 | F47: 144275573.8 | G47: 619278.7491 | H47: 1045056.51 | I47: 1664335.259 | J47: 143656295.1
D48: 16 | E48: 2023-10-05 | F48: 143656295.1 | G48: 587882.7291 | H48: 1076452.53 | I48: 1664335.259 | J48: 143068412.3
D49: 17 | E49: 2023-11-06 | F49: 143068412.3 | G49: 520818.0491 | H49: 1143517.21 | I49: 1664335.259 | J49: 142547594.3
D50: 18 | E50: 2023-12-05 | F50: 142547594.3 | G50: 631795.3191 | H50: 1032539.94 | I50: 1664335.259 | J50: 141915799
D51: 19 | E51: 2024-01-05 | F51: 141915799 | G51: 565477.6791 | H51: 1098857.58 | I51: 1664335.259 | J51: 141350321.3
D52: 20 | E52: 2024-02-06 | F52: 141350321.3 | G52: 534550.4091 | H52: 1129784.85 | I52: 1664335.259 | J52: 140815770.9
D53: 21 | E53: 2024-03-05 | F53: 140815770.9 | G53: 679511.9991 | H53: 984823.26 | I53: 1664335.259 | J53: 140136258.9
D54: 22 | E54: 2024-04-05 | F54: 140136258.9 | G54: 579256.6991 | H54: 1085078.56 | I54: 1664335.259 | J54: 139557002.2
D55: 23 | E55: 2024-05-06 | F55: 139557002.2 | G55: 583741.8991 | H55: 1080593.36 | I55: 1664335.259 | J55: 138973260.3
D56: 24 | E56: 2024-06-05 | F56: 138973260.3 | G56: 622973.8791 | H56: 1041361.38 | I56: 1664335.259 | J56: 138350286.4
D57: 25 | E57: 2024-07-05 | F57: 138350286.4 | G57: 627641.9791 | H57: 1036693.28 | I57: 1664335.259 | J57: 137722644.4
D58: 26 | E58: 2024-08-05 | F58: 137722644.4 | G58: 597945.3791 | H58: 1066389.88 | I58: 1664335.259 | J58: 137124699
D59: 27 | E59: 2024-09-05 | F59: 137124699 | G59: 602575.2891 | H59: 1061759.97 | I59: 1664335.259 | J59: 136522123.8
D60: 28 | E60: 2024-10-07 | F60: 136522123.8 | G60: 573141.2291 | H60: 1091194.03 | I60: 1664335.259 | J60: 135948982.5
D61: 29 | E61: 2024-11-05 | F61: 135948982.5 | G61: 679592.1991 | H61: 984743.06 | I61: 1664335.259 | J61: 135269390.3
D62: 30 | E62: 2024-12-05 | F62: 135269390.3 | G62: 650727.8991 | H62: 1013607.36 | I62: 1664335.259 | J62: 134618662.4
D63: 31 | E63: 2025-01-06 | F63: 134618662.4 | G63: 588355.2091 | H63: 1075980.05 | I63: 1664335.259 | J63: 134030307.2
D64: 32 | E64: 2025-02-05 | F64: 134030307.2 | G64: 660012.6591 | H64: 1004322.6 | I64: 1664335.259 | J64: 133370294.6
D65: 33 | E65: 2025-03-05 | F65: 133370294.6 | G65: 731583.4291 | H65: 932751.83 | I65: 1664335.259 | J65: 132638711.1
D66: 34 | E66: 2025-04-07 | F66: 132638711.1 | G66: 571050.7391 | H66: 1093284.52 | I66: 1664335.259 | J66: 132067660.4
D67: 35 | E67: 2025-05-05 | F67: 132067660.4 | G67: 740693.6591 | H67: 923641.6 | I67: 1664335.259 | J67: 131326966.7
D68: 36 | E68: 2025-06-05 | F68: 131326966.7 | G68: 647467.2691 | H68: 1016867.99 | I68: 1664335.259 | J68: 130679499.5
D69: 37 | E69: 2025-07-07 | F69: 130679499.5 | G69: 619840.1591 | H69: 1044495.1 | I69: 1664335.259 | J69: 130059659.3
D70: 38 | E70: 2025-08-05 | F70: 130059659.3 | G70: 722251.3691 | H70: 942083.89 | I70: 1664335.259 | J70: 129337407.9
D71: 39 | E71: 2025-09-05 | F71: 129337407.9 | G71: 662872.4791 | H71: 1001462.78 | I71: 1664335.259 | J71: 128674535.5
D72: 40 | E72: 2025-10-06 | F72: 128674535.5 | G72: 668005.1191 | H72: 996330.14 | I72: 1664335.259 | J72: 128006530.3
D73: 41 | E73: 2025-11-05 | F73: 128006530.3 | G73: 705150.3291 | H73: 959184.93 | I73: 1664335.259 | J73: 127301380
D74: 42 | E74: 2025-12-05 | F74: 127301380 | G74: 710434.1891 | H74: 953901.07 | I74: 1664335.259 | J74: 126590945.8
D75: 43 | E75: 2026-01-05 | F75: 126590945.8 | G75: 684138.3991 | H75: 980196.86 | I75: 1664335.259 | J75: =+F75-G75 -> 125906807.4
D76: 44 | E76: 2026-02-05 | F76: =+J75 -> 125906807.4 | G76: 689435.6991 | H76: 974899.56 | I76: =+I75 -> 1664335.259 | J76: 125217371.7
D77: 45 | E77: 2026-03-05 | F77: 125217371.7 | G77: 788602.5291 | H77: 875732.73 | I77: 1664335.259 | J77: 124428769.2
D78: 46 | E78: 2026-04-06 | F78: 124428769.2 | G78: 669800.9891 | H78: 994534.27 | I78: 1664335.259 | J78: 123758968.2
D79: 47 | E79: 2026-05-05 | F79: 123758968.2 | G79: =+I79-H79 -> 767890.2691 | H79: =+ROUND(F79*$H$6*(E79-E78)/360,2) -> 896444.99 | I79: 1664335.259 | J79: 122991077.9
D80: 48 | E80: 2026-06-05 | F80: 122991077.9 | G80: 712012.2691 | H80: 952322.99 | I80: 1664335.259 | J80: 122279065.7
D81: 49 | E81: 2026-07-06 | F81: 122279065.7 | G81: 717525.3991 | H81: 946809.86 | I81: 1664335.259 | J81: 121561540.3
D82: 50 | E82: 2026-08-05 | F82: 121561540.3 | G82: 753444.2491 | H82: 910891.01 | I82: 1664335.259 | J82: 120808096
D83: 51 | E83: 2026-09-07 | F83: 120808096 | G83: 668565.4691 | H83: 995769.79 | I83: 1664335.259 | J83: 120139530.6
D84: 52 | E84: 2026-10-05 | F84: 120139530.6 | G84: 824115.4291 | H84: 840219.83 | I84: 1664335.259 | J84: 119315415.1
D85: 53 | E85: 2026-11-05 | F85: 119315415.1 | G85: 740473.0191 | H85: 923862.24 | I85: 1664335.259 | J85: 118574942.1
D86: 54 | E86: 2026-12-07 | F86: 118574942.1 | G86: 716589.4591 | H86: 947745.8 | I86: 1664335.259 | J86: 117858352.6
D87: 55 | E87: 2027-01-05 | F87: 117858352.6 | G87: 810631.2291 | H87: 853704.03 | I87: 1664335.259 | J87: 117047721.4
D88: 56 | E88: 2027-02-05 | F88: 117047721.4 | G88: 758031.8291 | H88: 906303.43 | I88: 1664335.259 | J88: 116289689.6
D89: 57 | E89: 2027-03-05 | F89: 116289689.6 | G89: 851040.0591 | H89: 813295.2 | I89: 1664335.259 | J89: 115438649.5
D90: 58 | E90: 2027-04-05 | F90: 115438649.5 | G90: 770490.9091 | H90: 893844.35 | I90: 1664335.259 | J90: 114668158.6
D91: 59 | E91: 2027-05-05 | F91: 114668158.6 | G91: 805098.0791 | H91: 859237.18 | I91: 1664335.259 | J91: 113863060.5
D92: 60 | E92: 2027-06-07 | F92: 113863060.5 | G92: 725810.4391 | H92: 938524.82 | I92: 1664335.259 | J92: 113137250.1
D93: 61 | E93: 2027-07-05 | F93: 113137250.1 | G93: 873087.2691 | H93: 791247.99 | I93: 1664335.259 | J93: 112264162.8
D94: 62 | E94: 2027-08-05 | F94: 112264162.8 | G94: 795071.0391 | H94: 869264.22 | I94: 1664335.259 | J94: 111469091.8
D95: 63 | E95: 2027-09-06 | F95: 111469091.8 | G95: 773385.0991 | H95: 890950.16 | I95: 1664335.259 | J95: 110695706.7
D96: 64 | E96: 2027-10-05 | F96: 110695706.7 | G96: 862513.6791 | H96: 801821.58 | I96: 1664335.259 | J96: 109833193
D97: 65 | E97: 2027-11-05 | F97: 109833193 | G97: 813894.0991 | H97: 850441.16 | I97: 1664335.259 | J97: 109019298.9
D98: 66 | E98: 2027-12-06 | F98: 109019298.9 | G98: 820196.0991 | H98: 844139.16 | I98: 1664335.259 | J98: 108199102.8
D99: 67 | E99: 2028-01-05 | F99: 108199102.8 | G99: 853572.3291 | H99: 810762.93 | I99: 1664335.259 | J99: 107345530.5
D100: 68 | E100: 2028-02-08 | F100: 107345530.5 | G100: 752719.4391 | H100: 911615.82 | I100: 1664335.259 | J100: 106592811
D101: 69 | E101: 2028-03-06 | F101: 106592811 | G101: 945481.3391 | H101: 718853.92 | I101: 1664335.259 | J101: 105647329.7
D102: 70 | E102: 2028-04-05 | F102: 105647329.7 | G102: 872693.4091 | H102: 791641.85 | I102: 1664335.259 | J102: 104774636.3
D103: 71 | E103: 2028-05-05 | F103: 104774636.3 | G103: 879232.7191 | H103: 785102.54 | I103: 1664335.259 | J103: 103895403.6
D104: 72 | E104: 2028-06-05 | F104: 103895403.6 | G104: 859870.5491 | H104: 804464.71 | I104: 1664335.259 | J104: 103035533
D105: 73 | E105: 2028-07-05 | F105: 103035533 | G105: 892264.2491 | H105: 772071.01 | I105: 1664335.259 | J105: 102143268.8
D106: 74 | E106: 2028-08-07 | F106: 102143268.8 | G106: 822411.7091 | H106: 841923.55 | I106: 1664335.259 | J106: 101320857.1
D107: 75 | E107: 2028-09-05 | F107: 101320857.1 | G107: 930420.1591 | H107: 733915.1 | I107: 1664335.259 | J107: 100390436.9
D108: 76 | E108: 2028-10-05 | F108: 100390436.9 | G108: 912084.6191 | H108: 752250.64 | I108: 1664335.259 | J108: 99478352.29
D109: 77 | E109: 2028-11-06 | F109: 99478352.29 | G109: 869224.6891 | H109: 795110.57 | I109: 1664335.259 | J109: 98609127.6
D110: 78 | E110: 2028-12-05 | F110: 98609127.6 | G110: 950062.5091 | H110: 714272.75 | I110: 1664335.259 | J110: 97659065.09
D111: 79 | E111: 2029-01-05 | F111: 97659065.09 | G111: 908158.6791 | H111: 756176.58 | I111: 1664335.259 | J111: 96750906.41
D112: 80 | E112: 2029-02-06 | F112: 96750906.41 | G112: 891024.6191 | H112: 773310.64 | I112: 1664335.259 | J112: 95859881.8
D113: 81 | E113: 2029-03-05 | F113: 95859881.8 | G113: 1017863.409 | H113: 646471.85 | I113: 1664335.259 | J113: 94842018.39
D114: 82 | E114: 2029-04-05 | F114: 94842018.39 | G114: 929971.1391 | H114: 734364.12 | I114: 1664335.259 | J114: 93912047.25
D115: 83 | E115: 2029-05-07 | F115: 93912047.25 | G115: 913715.0491 | H115: 750620.21 | I115: 1664335.259 | J115: 92998332.2
D116: 84 | E116: 2029-06-05 | F116: 92998332.2 | G116: 990704.1691 | H116: 673631.09 | I116: 1664335.259 | J116: 92007628.03
D117: 85 | E117: 2029-07-05 | F117: 92007628.03 | G117: 974899.0991 | H117: 689436.16 | I117: 1664335.259 | J117: 91032728.93
D118: 86 | E118: 2029-08-06 | F118: 91032728.93 | G118: 936728.8591 | H118: 727606.4 | I118: 1664335.259 | J118: 90096000.07
D119: 87 | E119: 2029-09-05 | F119: 90096000.07 | G119: 989223.4091 | H119: 675111.85 | I119: 1664335.259 | J119: 89106776.66
D120: 88 | E120: 2029-10-05 | F120: 89106776.66 | G120: 996635.9091 | H120: 667699.35 | I120: 1664335.259 | J120: 88110140.75
D121: 89 | E121: 2029-11-05 | F121: 88110140.75 | G121: 982096.2391 | H121: 682239.02 | I121: 1664335.259 | J121: 87128044.51
D122: 90 | E122: 2029-12-05 | F122: 87128044.51 | G122: 1011463.039 | H122: 652872.22 | I122: 1664335.259 | J122: 86116581.47
D123: 91 | E123: 2030-01-07 | F123: 86116581.47 | G123: 954512.8791 | H123: 709822.38 | I123: 1664335.259 | J123: 85162068.6
D124: 92 | E124: 2030-02-05 | F124: 85162068.6 | G124: 1047465.949 | H124: 616869.31 | I124: 1664335.259 | J124: 84114602.65
D125: 93 | E125: 2030-03-05 | F125: 84114602.65 | G125: 1076062.959 | H125: 588272.3 | I125: 1664335.259 | J125: 83038539.69
D126: 94 | E126: 2030-04-05 | F126: 83038539.69 | G126: 1021365.769 | H126: 642969.49 | I126: 1664335.259 | J126: 82017173.92
D127: 95 | E127: 2030-05-06 | F127: 82017173.92 | G127: 1029274.229 | H127: 635061.03 | I127: 1664335.259 | J127: 80987899.69
D128: 96 | E128: 2030-06-05 | F128: 80987899.69 | G128: 1057472.679 | H128: 606862.58 | I128: 1664335.259 | J128: 79930427.01
D129: 97 | E129: 2030-07-05 | F129: 79930427.01 | G129: 1065396.589 | H129: 598938.67 | I129: 1664335.259 | J129: 78865030.42
D130: 98 | E130: 2030-08-05 | F130: 78865030.42 | G130: 1053681.359 | H130: 610653.9 | I130: 1664335.259 | J130: 77811349.06
D131: 99 | E131: 2030-09-05 | F131: 77811349.06 | G131: 1061840.039 | H131: 602495.22 | I131: 1664335.259 | J131: 76749509.02
D132: 100 | E132: 2030-10-07 | F132: 76749509.02 | G132: 1050891.779 | H132: 613443.48 | I132: 1664335.259 | J132: 75698617.24
D133: 101 | E133: 2030-11-05 | F133: 75698617.24 | G133: 1116014.219 | H133: 548321.04 | I133: 1664335.259 | J133: 74582603.02
D134: 102 | E134: 2030-12-05 | F134: 74582603.02 | G134: 1105469.169 | H134: 558866.09 | I134: 1664335.259 | J134: 73477133.86
D135: 103 | E135: 2031-01-06 | F135: 73477133.86 | G135: 1077047.219 | H135: 587288.04 | I135: 1664335.259 | J135: 72400086.64
D136: 104 | E136: 2031-02-05 | F136: 72400086.64 | G136: 1121823.309 | H136: 542511.95 | I136: 1664335.259 | J136: 71278263.33
D137: 105 | E137: 2031-03-05 | F137: 71278263.33 | G137: 1165836.469 | H137: 498498.79 | I137: 1664335.259 | J137: 70112426.86
D138: 106 | E138: 2031-04-07 | F138: 70112426.86 | G138: 1086428.319 | H138: 577906.94 | I138: 1664335.259 | J138: 69025998.54
D139: 107 | E139: 2031-05-05 | F139: 69025998.54 | G139: 1181588.129 | H139: 482747.13 | I139: 1664335.259 | J139: =+F139-G139 -> 67844410.41
D140: 108 | E140: 2031-06-05 | F140: =+J139 -> 67844410.41 | G140: 1139014.289 | H140: 525320.97 | I140: =+I139 -> 1664335.259 | J140: 66705396.12
D141: 109 | E141: 2031-07-07 | F141: 66705396.12 | G141: 1131172.369 | H141: 533162.89 | I141: 1664335.259 | J141: 65574223.75
D142: 110 | E142: 2031-08-05 | F142: 65574223.75 | G142: 1189350.009 | H142: 474985.25 | I142: 1664335.259 | J142: 64384873.74
D143: 111 | E143: 2031-09-05 | F143: 64384873.74 | G143: =+I143-H143 -> 1165801.569 | H143: =+ROUND(F143*$H$6*(E143-E142)/360,2) -> 498533.69 | I143: 1664335.259 | J143: 63219072.17
D144: 112 | E144: 2031-10-06 | F144: 63219072.17 | G144: 1174828.399 | H144: 489506.86 | I144: 1664335.259 | J144: 62044243.77
D145: 113 | E145: 2031-11-05 | F145: 62044243.77 | G145: 1199422.229 | H145: 464913.03 | I145: 1664335.259 | J145: 60844821.55
D146: 114 | E146: 2031-12-05 | F146: 60844821.55 | G146: 1208409.799 | H146: 455925.46 | I146: 1664335.259 | J146: 59636411.75
D147: 115 | E147: 2032-01-06 | F147: 59636411.75 | G147: 1187673.349 | H147: 476661.91 | I147: 1664335.259 | J147: 58448738.4
D148: 116 | E148: 2032-02-05 | F148: 58448738.4 | G148: 1226364.249 | H148: 437971.01 | I148: 1664335.259 | J148: 57222374.15
D149: 117 | E149: 2032-03-05 | F149: 57222374.15 | G149: 1249846.419 | H149: 414488.84 | I149: 1664335.259 | J149: 55972527.73
D150: 118 | E150: 2032-04-05 | F150: 55972527.73 | G150: 1230938.579 | H150: 433396.68 | I150: 1664335.259 | J150: 54741589.15
D151: 119 | E151: 2032-05-05 | F151: 54741589.15 | G151: 1254142.849 | H151: 410192.41 | I151: 1664335.259 | J151: 53487446.3
D152: 120 | E152: 2032-06-07 | F152: 53487446.3 | G152: 1223460.969 | H152: 440874.29 | I152: 1664335.259 | J152: 52263985.33
D153: 121 | E153: 2032-07-05 | F153: 52263985.33 | G153: 1298816.629 | H153: 365518.63 | I153: 1664335.259 | J153: 50965168.7
D154: 122 | E154: 2032-08-05 | F154: 50965168.7 | G154: 1269710.679 | H154: 394624.58 | I154: 1664335.259 | J154: 49695458.02
D155: 123 | E155: 2032-09-06 | F155: 49695458.02 | G155: 1267129.399 | H155: 397205.86 | I155: 1664335.259 | J155: 48428328.62
D156: 124 | E156: 2032-10-05 | F156: 48428328.62 | G156: 1313545.869 | H156: 350789.39 | I156: 1664335.259 | J156: 47114782.75
D157: 125 | E157: 2032-11-05 | F157: 47114782.75 | G157: 1299524.319 | H157: 364810.94 | I157: 1664335.259 | J157: 45815258.44
D158: 126 | E158: 2032-12-06 | F158: 45815258.44 | G158: 1309586.569 | H158: 354748.69 | I158: 1664335.259 | J158: 44505671.87
D159: 127 | E159: 2033-01-05 | F159: 44505671.87 | G159: 1330843.129 | H159: 333492.13 | I159: 1664335.259 | J159: 43174828.74
D160: 128 | E160: 2033-02-08 | F160: 43174828.74 | G160: 1297679.499 | H160: 366655.76 | I160: 1664335.259 | J160: 41877149.24
D161: 129 | E161: 2033-03-07 | F161: 41877149.24 | G161: 1381918.909 | H161: 282416.35 | I161: 1664335.259 | J161: 40495230.33
D162: 130 | E162: 2033-04-05 | F162: 40495230.33 | G162: 1371009.069 | H162: 293326.19 | I162: 1664335.259 | J162: 39124221.26
D163: 131 | E163: 2033-05-05 | F163: 39124221.26 | G163: 1371167.689 | H163: 293167.57 | I163: 1664335.259 | J163: 37753053.57
D164: 132 | E164: 2033-06-06 | F164: 37753053.57 | G164: 1362582.649 | H164: 301752.61 | I164: 1664335.259 | J164: 36390470.92
D165: 133 | E165: 2033-07-05 | F165: 36390470.92 | G165: 1400741.789 | H165: 263593.47 | I165: 1664335.259 | J165: 34989729.13
D166: 134 | E166: 2033-08-05 | F166: 34989729.13 | G166: 1393408.909 | H166: 270926.35 | I166: 1664335.259 | J166: 33596320.22
D167: 135 | E167: 2033-09-05 | F167: 33596320.22 | G167: 1404198.109 | H167: 260137.15 | I167: 1664335.259 | J167: 32192122.11
D168: 136 | E168: 2033-10-05 | F168: 32192122.11 | G168: 1423111.639 | H168: 241223.62 | I168: 1664335.259 | J168: 30769010.48
D169: 137 | E169: 2033-11-07 | F169: 30769010.48 | G169: 1410719.379 | H169: 253615.88 | I169: 1664335.259 | J169: 29358291.1
D170: 138 | E170: 2033-12-05 | F170: 29358291.1 | G170: 1459012.179 | H170: 205323.08 | I170: 1664335.259 | J170: 27899278.92
D171: 139 | E171: 2034-01-05 | F171: 27899278.92 | G171: 1448310.449 | H171: 216024.81 | I171: 1664335.259 | J171: 26450968.47
D172: 140 | E172: 2034-02-07 | F172: 26450968.47 | G172: 1446311.169 | H172: 218024.09 | I172: 1664335.259 | J172: 25004657.3
D173: 141 | E173: 2034-03-06 | F173: 25004657.3 | G173: 1495705.729 | H173: 168629.53 | I173: 1664335.259 | J173: 23508951.57
D174: 142 | E174: 2034-04-05 | F174: 23508951.57 | G174: 1488176.809 | H174: 176158.45 | I174: 1664335.259 | J174: 22020774.76
D175: 143 | E175: 2034-05-05 | F175: 22020774.76 | G175: 1499328.089 | H175: 165007.17 | I175: 1664335.259 | J175: 20521446.67
D176: 144 | E176: 2034-06-05 | F176: 20521446.67 | G176: 1505437.189 | H176: 158898.07 | I176: 1664335.259 | J176: 19016009.48
D177: 145 | E177: 2034-07-05 | F177: 19016009.48 | G177: 1521843.549 | H177: 142491.71 | I177: 1664335.259 | J177: 17494165.93
D178: 146 | E178: 2034-08-07 | F178: 17494165.93 | G178: 1520138.289 | H178: 144196.97 | I178: 1664335.259 | J178: 15974027.64
D179: 147 | E179: 2034-09-05 | F179: 15974027.64 | G179: 1548627.789 | H179: 115707.47 | I179: 1664335.259 | J179: 14425399.86
D180: 148 | E180: 2034-10-05 | F180: 14425399.86 | G180: 1556242.129 | H180: 108093.13 | I180: 1664335.259 | J180: 12869157.73
D181: 149 | E181: 2034-11-06 | F181: 12869157.73 | G181: 1561474.659 | H181: 102860.6 | I181: 1664335.259 | J181: 11307683.07
D182: 150 | E182: 2034-12-05 | F182: 11307683.07 | G182: 1582428.339 | H182: 81906.92 | I182: 1664335.259 | J182: 9725254.728
D183: 151 | E183: 2035-01-05 | F183: 9725254.728 | G183: 1589032.369 | H183: 75302.89 | I183: 1664335.259 | J183: 8136222.359
D184: 152 | E184: 2035-02-06 | F184: 8136222.359 | G184: 1599304.059 | H184: 65031.2 | I184: 1664335.259 | J184: 6536918.3
D185: 153 | E185: 2035-03-05 | F185: 6536918.3 | G185: 1620250.769 | H185: 44084.49 | I185: 1664335.259 | J185: 4916667.531
D186: 154 | E186: 2035-04-05 | F186: 4916667.531 | G186: 1626265.379 | H186: 38069.88 | I186: 1664335.259 | J186: 3290402.152
D187: 155 | E187: 2035-05-07 | F187: 3290402.152 | G187: 1638035.729 | H187: 26299.53 | I187: 1664335.259 | J187: 1652366.422
D188: 156 | E188: 2035-06-05 | F188: 1652366.422 | G188: 1652366.389 | H188: 11968.87 | I188: 1664335.259 | J188: =+ROUND(F188-G188,1) -> 0
